{"text_format":"3","workbook":"xlsx","n_sheets":4,"sheets":["Prezentare Generală Bugetului","Rezumatul Bugetului","Cheltuieli Lunare","Date Suplimentare"],"not_rendered":{"charts":1,"images":4,"defined_names":7,"pivot_tables":2},"read":"whole","date_system":"1900"}

{"sheet":"Prezentare Generală Bugetului","index":0,"n_rows":12,"n_cols":8,"rows_kept":12,"merged":[[2,1,2,2],[3,1,3,2],[4,1,4,2]]}
[{"$nulls":7}," "]
[null,"Sold"]
[null,"Sold estimat",null,{"$f":"Venit_Preconizat-Cheltuieli_Preconizate","v":{"v":1585,"d":"1,585 lei"}},null,"Estimat minus cheltuieli"]
[null,"Sold real ",null,{"$f":"Venit_Real-Cheltuieli_Reale","v":{"v":1740,"d":"1,740 lei"}},null,"Real minus cheltuieli"]
[null,"Diferență",null,{"$f":"D4-D3","v":{"v":155,"d":"155 lei"}},null,"Real minus estimat"]
[null,"Venit",{"$nulls":3},"Cheltuieli"]
[null,null,"Estimat","Real",null,"Estimat","Real"]
[null,"Venit 1",{"v":6000,"d":"6,000 lei"},{"v":5800,"d":"5,800 lei"},null,{"$f":"SUM(Tabel_Cheltuieli_Lunare[Costul estimat])","v":{"v":7915,"d":"7,915 lei"}},{"$f":"SUM(Tabel_Cheltuieli_Lunare[Costul real])","v":{"v":7860,"d":"7,860 lei"}}]
[null,"Venit 2",{"v":1000,"d":"1,000 lei"},{"v":2300,"d":"2,300 lei"}]
[null,"Venit suplimentar",{"v":2500,"d":"2,500 lei"},{"v":1500,"d":"1,500 lei"}]
[null,"Venit total",{"$f":"SUM(C8:C10)","v":{"v":9500,"d":"9,500 lei"}},{"$f":"SUM(D8:D10)","v":{"v":9600,"d":"9,600 lei"}}]
[null,"Defalcarea cheltuielilor reale"]

{"sheet":"Rezumatul Bugetului","index":1,"n_rows":41,"n_cols":7,"rows_kept":41}
[null,"Rezumatul bugetului",{"$nulls":4}," "]
[]
[null,"Categorii","Costul estimat ","Costul real ","Diferență "]
[null,"Alimente",{"v":1100,"d":"1,100 lei"},{"v":1320,"d":"1,320 lei"},{"v":2,"d":"2 lei"}]
[null,"Articole de băcănie",{"v":100,"d":"100 lei"},{"v":120,"d":"120 lei"},{"v":1,"d":"1 lei"}]
[null,"Masă în oraș",{"v":1000,"d":"1,000 lei"},{"v":1200,"d":"1,200 lei"},{"v":1,"d":"1 lei"}]
[]
[null,"Animale de casă",{"v":170,"d":"170 lei"},{"v":100,"d":"100 lei"},{"v":4,"d":"4 lei"}]
[null,"Alimente",{"v":150,"d":"150 lei"},{"v":75,"d":"75 lei"},{"v":1,"d":"1 lei"}]
[null,"Îngrijire",{"v":20,"d":"20 lei"},{"v":25,"d":"25 lei"},{"v":1,"d":"1 lei"}]
[null,"Jucării",null,null,{"v":1,"d":"1 lei"}]
[null,"Medicale",null,null,{"v":1,"d":"1 lei"}]
[]
[null,"Asigurare",{"v":900,"d":"900 lei"},{"v":900,"d":"900 lei"},{"v":3,"d":"3 lei"}]
[]
[null,"Cadouri și caritate",{"v":100,"d":"100 lei"},{"v":125,"d":"125 lei"},{"v":4,"d":"4 lei"}]
[]
[null,"Copii",{"v":140,"d":"140 lei"},{"v":140,"d":"140 lei"},{"v":4,"d":"4 lei"}]
[]
[null,"Distracție",{"v":400,"d":"400 lei"},{"v":358,"d":"358 lei"},{"v":7,"d":"7 lei"}]
[]
[null,"Economii",{"v":200,"d":"200 lei"},{"v":200,"d":"200 lei"},{"v":2,"d":"2 lei"}]
[]
[null,"Împrumuturi",{"v":200,"d":"200 lei"},{"v":200,"d":"200 lei"},{"v":5,"d":"5 lei"}]
[]
[null,"Îngrijire personală",{"v":150,"d":"150 lei"},{"v":140,"d":"140 lei"},{"v":5,"d":"5 lei"}]
[]
[null,"Locuință",{"v":2830,"d":"2,830 lei"},{"v":2702,"d":"2,702 lei"},{"v":13,"d":"13 lei"}]
[]
[null,"Taxe",{"v":300,"d":"300 lei"},{"v":300,"d":"300 lei"},{"v":3,"d":"3 lei"}]
[]
[null,"Transport",{"v":1425,"d":"1,425 lei"},{"v":1375,"d":"1,375 lei"},{"v":7,"d":"7 lei"}]
[null,"Asigurare",{"v":300,"d":"300 lei"},{"v":300,"d":"300 lei"},{"v":1,"d":"1 lei"}]
[null,"Benzină",{"v":450,"d":"450 lei"},{"v":400,"d":"400 lei"},{"v":1,"d":"1 lei"}]
[null,"Întreținere",{"v":100,"d":"100 lei"},{"v":50,"d":"50 lei"},{"v":1,"d":"1 lei"}]
[null,"Licențiere ",{"v":25,"d":"25 lei"},{"v":25,"d":"25 lei"},{"v":1,"d":"1 lei"}]
[null,"Plată vehicul",{"v":450,"d":"450 lei"},{"v":450,"d":"450 lei"},{"v":1,"d":"1 lei"}]
[null,"Tarif autobuz/taxi",{"v":100,"d":"100 lei"},{"v":150,"d":"150 lei"},{"v":1,"d":"1 lei"}]
[null,"Taxe de parcare",null,null,{"v":1,"d":"1 lei"}]
[]
[null,"Total general",{"v":7915,"d":"7,915 lei"},{"v":7860,"d":"7,860 lei"},{"v":59,"d":"59 lei"}]

{"sheet":"Cheltuieli Lunare","index":2,"n_rows":61,"n_cols":8,"rows_kept":61}
[{"$nulls":7}," "]
[null,"Descriere","Categorie","Costul estimat","Costul real","Diferență","Prezentare generală a costurilor reale"]
[null,"Activități extracuriculare","Copii",{"v":40,"d":"40 lei"},{"v":40,"d":"40 lei"},{"$f":"IF(OR(Tabel_Cheltuieli_Lunare[[#This Row],[Costul estimat]]=\"\",Tabel_Cheltuieli_Lunare[[#This Row],[Costul real]]=\"\"),\"\",Tabel_Cheltuieli_Lunare[[#This Row],[Costul estimat]]-Tabel_Cheltuieli_Lunare[[#This Row],[Costul real]])","v":{"v":0,"d":"0 lei"}},{"$f":"Tabel_Cheltuieli_Lunare[[#This Row],[Costul real]]","v":40}]
[null,"Medicale","Copii",null,null,{"$f":"IF(OR(Tabel_Cheltuieli_Lunare[[#This Row],[Costul estimat]]=\"\",Tabel_Cheltuieli_Lunare[[#This Row],[Costul real]]=\"\"),\"\",Tabel_Cheltuieli_Lunare[[#This Row],[Costul estimat]]-Tabel_Cheltuieli_Lunare[[#This Row],[Costul real]])","v":""},{"$f":"Tabel_Cheltuieli_Lunare[[#This Row],[Costul real]]","v":0}]
[null,"Rechizite școlare","Copii",null,null,{"$f":"IF(OR(Tabel_Cheltuieli_Lunare[[#This Row],[Costul estimat]]=\"\",Tabel_Cheltuieli_Lunare[[#This Row],[Costul real]]=\"\"),\"\",Tabel_Cheltuieli_Lunare[[#This Row],[Costul estimat]]-Tabel_Cheltuieli_Lunare[[#This Row],[Costul real]])","v":""},{"$f":"Tabel_Cheltuieli_Lunare[[#This Row],[Costul real]]","v":0}]
[null,"Taxe școlare","Copii",{"v":100,"d":"100 lei"},{"v":100,"d":"100 lei"},{"$f":"IF(OR(Tabel_Cheltuieli_Lunare[[#This Row],[Costul estimat]]=\"\",Tabel_Cheltuieli_Lunare[[#This Row],[Costul real]]=\"\"),\"\",Tabel_Cheltuieli_Lunare[[#This Row],[Costul estimat]]-Tabel_Cheltuieli_Lunare[[#This Row],[Costul real]])","v":{"v":0,"d":"0 lei"}},{"$f":"Tabel_Cheltuieli_Lunare[[#This Row],[Costul real]]","v":100}]
[null,"Concerte","Distracție",{"v":50,"d":"50 lei"},{"v":40,"d":"40 lei"},{"$f":"IF(OR(Tabel_Cheltuieli_Lunare[[#This Row],[Costul estimat]]=\"\",Tabel_Cheltuieli_Lunare[[#This Row],[Costul real]]=\"\"),\"\",Tabel_Cheltuieli_Lunare[[#This Row],[Costul estimat]]-Tabel_Cheltuieli_Lunare[[#This Row],[Costul real]])","v":{"v":10,"d":"10 lei"}},{"$f":"Tabel_Cheltuieli_Lunare[[#This Row],[Costul real]]","v":40}]
[null,"Teatru live","Distracție",{"v":200,"d":"200 lei"},{"v":150,"d":"150 lei"},{"$f":"IF(OR(Tabel_Cheltuieli_Lunare[[#This Row],[Costul estimat]]=\"\",Tabel_Cheltuieli_Lunare[[#This Row],[Costul real]]=\"\"),\"\",Tabel_Cheltuieli_Lunare[[#This Row],[Costul estimat]]-Tabel_Cheltuieli_Lunare[[#This Row],[Costul real]])","v":{"v":50,"d":"50 lei"}},{"$f":"Tabel_Cheltuieli_Lunare[[#This Row],[Costul real]]","v":150}]
[null,"Filme","Distracție",{"v":50,"d":"50 lei"},{"v":28,"d":"28 lei"},{"$f":"IF(OR(Tabel_Cheltuieli_Lunare[[#This Row],[Costul estimat]]=\"\",Tabel_Cheltuieli_Lunare[[#This Row],[Costul real]]=\"\"),\"\",Tabel_Cheltuieli_Lunare[[#This Row],[Costul estimat]]-Tabel_Cheltuieli_Lunare[[#This Row],[Costul real]])","v":{"v":22,"d":"22 lei"}},{"$f":"Tabel_Cheltuieli_Lunare[[#This Row],[Costul real]]","v":28}]
[null,"Muzică (CD-uri, descărcări etc.)","Distracție",{"v":50,"d":"50 lei"},{"v":30,"d":"30 lei"},{"$f":"IF(OR(Tabel_Cheltuieli_Lunare[[#This Row],[Costul estimat]]=\"\",Tabel_Cheltuieli_Lunare[[#This Row],[Costul real]]=\"\"),\"\",Tabel_Cheltuieli_Lunare[[#This Row],[Costul estimat]]-Tabel_Cheltuieli_Lunare[[#This Row],[Costul real]])","v":{"v":20,"d":"20 lei"}},{"$f":"Tabel_Cheltuieli_Lunare[[#This Row],[Costul real]]","v":30}]
[null,"Evenimente sportive","Distracție",{"v":0,"d":"0 lei"},{"v":40,"d":"40 lei"},{"$f":"IF(OR(Tabel_Cheltuieli_Lunare[[#This Row],[Costul estimat]]=\"\",Tabel_Cheltuieli_Lunare[[#This Row],[Costul real]]=\"\"),\"\",Tabel_Cheltuieli_Lunare[[#This Row],[Costul estimat]]-Tabel_Cheltuieli_Lunare[[#This Row],[Costul real]])","v":{"v":-40,"d":"-40 lei"}},{"$f":"Tabel_Cheltuieli_Lunare[[#This Row],[Costul real]]","v":40}]
[null,"Video/DVD (achiziții)","Distracție",{"v":20,"d":"20 lei"},{"v":50,"d":"50 lei"},{"$f":"IF(OR(Tabel_Cheltuieli_Lunare[[#This Row],[Costul estimat]]=\"\",Tabel_Cheltuieli_Lunare[[#This Row],[Costul real]]=\"\"),\"\",Tabel_Cheltuieli_Lunare[[#This Row],[Costul estimat]]-Tabel_Cheltuieli_Lunare[[#This Row],[Costul real]])","v":{"v":-30,"d":"-30 lei"}},{"$f":"Tabel_Cheltuieli_Lunare[[#This Row],[Costul real]]","v":50}]
[null,"Video/DVD (închirieri)","Distracție",{"v":30,"d":"30 lei"},{"v":20,"d":"20 lei"},{"$f":"IF(OR(Tabel_Cheltuieli_Lunare[[#This Row],[Costul estimat]]=\"\",Tabel_Cheltuieli_Lunare[[#This Row],[Costul real]]=\"\"),\"\",Tabel_Cheltuieli_Lunare[[#This Row],[Costul estimat]]-Tabel_Cheltuieli_Lunare[[#This Row],[Costul real]])","v":{"v":10,"d":"10 lei"}},{"$f":"Tabel_Cheltuieli_Lunare[[#This Row],[Costul real]]","v":20}]
[null,"Masă în oraș","Alimente",{"v":1000,"d":"1,000 lei"},{"v":1200,"d":"1,200 lei"},{"$f":"IF(OR(Tabel_Cheltuieli_Lunare[[#This Row],[Costul estimat]]=\"\",Tabel_Cheltuieli_Lunare[[#This Row],[Costul real]]=\"\"),\"\",Tabel_Cheltuieli_Lunare[[#This Row],[Costul estimat]]-Tabel_Cheltuieli_Lunare[[#This Row],[Costul real]])","v":{"v":-200,"d":"-200 lei"}},{"$f":"Tabel_Cheltuieli_Lunare[[#This Row],[Costul real]]","v":1200}]
[null,"Articole de băcănie","Alimente",{"v":100,"d":"100 lei"},{"v":120,"d":"120 lei"},{"$f":"IF(OR(Tabel_Cheltuieli_Lunare[[#This Row],[Costul estimat]]=\"\",Tabel_Cheltuieli_Lunare[[#This Row],[Costul real]]=\"\"),\"\",Tabel_Cheltuieli_Lunare[[#This Row],[Costul estimat]]-Tabel_Cheltuieli_Lunare[[#This Row],[Costul real]])","v":{"v":-20,"d":"-20 lei"}},{"$f":"Tabel_Cheltuieli_Lunare[[#This Row],[Costul real]]","v":120}]
[null,"Caritate 1","Cadouri și caritate",{"v":75,"d":"75 lei"},{"v":100,"d":"100 lei"},{"$f":"IF(OR(Tabel_Cheltuieli_Lunare[[#This Row],[Costul estimat]]=\"\",Tabel_Cheltuieli_Lunare[[#This Row],[Costul real]]=\"\"),\"\",Tabel_Cheltuieli_Lunare[[#This Row],[Costul estimat]]-Tabel_Cheltuieli_Lunare[[#This Row],[Costul real]])","v":{"v":-25,"d":"-25 lei"}},{"$f":"Tabel_Cheltuieli_Lunare[[#This Row],[Costul real]]","v":100}]
[null,"Caritate 2","Cadouri și caritate",{"v":25,"d":"25 lei"},{"v":25,"d":"25 lei"},{"$f":"IF(OR(Tabel_Cheltuieli_Lunare[[#This Row],[Costul estimat]]=\"\",Tabel_Cheltuieli_Lunare[[#This Row],[Costul real]]=\"\"),\"\",Tabel_Cheltuieli_Lunare[[#This Row],[Costul estimat]]-Tabel_Cheltuieli_Lunare[[#This Row],[Costul real]])","v":{"v":0,"d":"0 lei"}},{"$f":"Tabel_Cheltuieli_Lunare[[#This Row],[Costul real]]","v":25}]
[null,"Cadou 1","Cadouri și caritate",null,null,{"$f":"IF(OR(Tabel_Cheltuieli_Lunare[[#This Row],[Costul estimat]]=\"\",Tabel_Cheltuieli_Lunare[[#This Row],[Costul real]]=\"\"),\"\",Tabel_Cheltuieli_Lunare[[#This Row],[Costul estimat]]-Tabel_Cheltuieli_Lunare[[#This Row],[Costul real]])","v":""},{"$f":"Tabel_Cheltuieli_Lunare[[#This Row],[Costul real]]","v":0}]
[null,"Cadou 2","Cadouri și caritate",null,null,{"$f":"IF(OR(Tabel_Cheltuieli_Lunare[[#This Row],[Costul estimat]]=\"\",Tabel_Cheltuieli_Lunare[[#This Row],[Costul real]]=\"\"),\"\",Tabel_Cheltuieli_Lunare[[#This Row],[Costul estimat]]-Tabel_Cheltuieli_Lunare[[#This Row],[Costul real]])","v":""},{"$f":"Tabel_Cheltuieli_Lunare[[#This Row],[Costul real]]","v":0}]
[null,"Cablu/satelit","Locuință",{"v":100,"d":"100 lei"},{"v":100,"d":"100 lei"},{"$f":"IF(OR(Tabel_Cheltuieli_Lunare[[#This Row],[Costul estimat]]=\"\",Tabel_Cheltuieli_Lunare[[#This Row],[Costul real]]=\"\"),\"\",Tabel_Cheltuieli_Lunare[[#This Row],[Costul estimat]]-Tabel_Cheltuieli_Lunare[[#This Row],[Costul real]])","v":{"v":0,"d":"0 lei"}},{"$f":"Tabel_Cheltuieli_Lunare[[#This Row],[Costul real]]","v":100}]
[null,"Curent electric","Locuință",{"v":45,"d":"45 lei"},{"v":50,"d":"50 lei"},{"$f":"IF(OR(Tabel_Cheltuieli_Lunare[[#This Row],[Costul estimat]]=\"\",Tabel_Cheltuieli_Lunare[[#This Row],[Costul real]]=\"\"),\"\",Tabel_Cheltuieli_Lunare[[#This Row],[Costul estimat]]-Tabel_Cheltuieli_Lunare[[#This Row],[Costul real]])","v":{"v":-5,"d":"-5 lei"}},{"$f":"Tabel_Cheltuieli_Lunare[[#This Row],[Costul real]]","v":50}]
[null,"Gaze","Locuință",{"v":300,"d":"300 lei"},{"v":400,"d":"400 lei"},{"$f":"IF(OR(Tabel_Cheltuieli_Lunare[[#This Row],[Costul estimat]]=\"\",Tabel_Cheltuieli_Lunare[[#This Row],[Costul real]]=\"\"),\"\",Tabel_Cheltuieli_Lunare[[#This Row],[Costul estimat]]-Tabel_Cheltuieli_Lunare[[#This Row],[Costul real]])","v":{"v":-100,"d":"-100 lei"}},{"$f":"Tabel_Cheltuieli_Lunare[[#This Row],[Costul real]]","v":400}]
[null,"Servicii de curățenie a casei","Locuință",{"v":200,"d":"200 lei"},null,{"$f":"IF(OR(Tabel_Cheltuieli_Lunare[[#This Row],[Costul estimat]]=\"\",Tabel_Cheltuieli_Lunare[[#This Row],[Costul real]]=\"\"),\"\",Tabel_Cheltuieli_Lunare[[#This Row],[Costul estimat]]-Tabel_Cheltuieli_Lunare[[#This Row],[Costul real]])","v":""},{"$f":"Tabel_Cheltuieli_Lunare[[#This Row],[Costul real]]","v":0}]
[null,"Întreținere","Locuință",{"v":200,"d":"200 lei"},{"v":150,"d":"150 lei"},{"$f":"IF(OR(Tabel_Cheltuieli_Lunare[[#This Row],[Costul estimat]]=\"\",Tabel_Cheltuieli_Lunare[[#This Row],[Costul real]]=\"\"),\"\",Tabel_Cheltuieli_Lunare[[#This Row],[Costul estimat]]-Tabel_Cheltuieli_Lunare[[#This Row],[Costul real]])","v":{"v":50,"d":"50 lei"}},{"$f":"Tabel_Cheltuieli_Lunare[[#This Row],[Costul real]]","v":150}]
[null,"Credit ipotecar sau chirie","Locuință",{"v":1700,"d":"1,700 lei"},{"v":1700,"d":"1,700 lei"},{"$f":"IF(OR(Tabel_Cheltuieli_Lunare[[#This Row],[Costul estimat]]=\"\",Tabel_Cheltuieli_Lunare[[#This Row],[Costul real]]=\"\"),\"\",Tabel_Cheltuieli_Lunare[[#This Row],[Costul estimat]]-Tabel_Cheltuieli_Lunare[[#This Row],[Costul real]])","v":{"v":0,"d":"0 lei"}},{"$f":"Tabel_Cheltuieli_Lunare[[#This Row],[Costul real]]","v":1700}]
[null,"Gaze naturale/petrol","Locuință",null,null,{"$f":"IF(OR(Tabel_Cheltuieli_Lunare[[#This Row],[Costul estimat]]=\"\",Tabel_Cheltuieli_Lunare[[#This Row],[Costul real]]=\"\"),\"\",Tabel_Cheltuieli_Lunare[[#This Row],[Costul estimat]]-Tabel_Cheltuieli_Lunare[[#This Row],[Costul real]])","v":""},{"$f":"Tabel_Cheltuieli_Lunare[[#This Row],[Costul real]]","v":0}]
[null,"Servicii online/internet","Locuință",{"v":100,"d":"100 lei"},{"v":100,"d":"100 lei"},{"$f":"IF(OR(Tabel_Cheltuieli_Lunare[[#This Row],[Costul estimat]]=\"\",Tabel_Cheltuieli_Lunare[[#This Row],[Costul real]]=\"\"),\"\",Tabel_Cheltuieli_Lunare[[#This Row],[Costul estimat]]-Tabel_Cheltuieli_Lunare[[#This Row],[Costul real]])","v":{"v":0,"d":"0 lei"}},{"$f":"Tabel_Cheltuieli_Lunare[[#This Row],[Costul real]]","v":100}]
[null,"Telefon (mobil)","Locuință",{"v":60,"d":"60 lei"},{"v":60,"d":"60 lei"},{"$f":"IF(OR(Tabel_Cheltuieli_Lunare[[#This Row],[Costul estimat]]=\"\",Tabel_Cheltuieli_Lunare[[#This Row],[Costul real]]=\"\"),\"\",Tabel_Cheltuieli_Lunare[[#This Row],[Costul estimat]]-Tabel_Cheltuieli_Lunare[[#This Row],[Costul real]])","v":{"v":0,"d":"0 lei"}},{"$f":"Tabel_Cheltuieli_Lunare[[#This Row],[Costul real]]","v":60}]
[null,"Telefon (acasă)","Locuință",{"v":35,"d":"35 lei"},{"v":39,"d":"39 lei"},{"$f":"IF(OR(Tabel_Cheltuieli_Lunare[[#This Row],[Costul estimat]]=\"\",Tabel_Cheltuieli_Lunare[[#This Row],[Costul real]]=\"\"),\"\",Tabel_Cheltuieli_Lunare[[#This Row],[Costul estimat]]-Tabel_Cheltuieli_Lunare[[#This Row],[Costul real]])","v":{"v":-4,"d":"-4 lei"}},{"$f":"Tabel_Cheltuieli_Lunare[[#This Row],[Costul real]]","v":39}]
[null,"Consumabile","Locuință",{"v":40,"d":"40 lei"},{"v":55,"d":"55 lei"},{"$f":"IF(OR(Tabel_Cheltuieli_Lunare[[#This Row],[Costul estimat]]=\"\",Tabel_Cheltuieli_Lunare[[#This Row],[Costul real]]=\"\"),\"\",Tabel_Cheltuieli_Lunare[[#This Row],[Costul estimat]]-Tabel_Cheltuieli_Lunare[[#This Row],[Costul real]])","v":{"v":-15,"d":"-15 lei"}},{"$f":"Tabel_Cheltuieli_Lunare[[#This Row],[Costul real]]","v":55}]
[null,"Eliminare și reciclare deșeuri","Locuință",{"v":25,"d":"25 lei"},{"v":22,"d":"22 lei"},{"$f":"IF(OR(Tabel_Cheltuieli_Lunare[[#This Row],[Costul estimat]]=\"\",Tabel_Cheltuieli_Lunare[[#This Row],[Costul real]]=\"\"),\"\",Tabel_Cheltuieli_Lunare[[#This Row],[Costul estimat]]-Tabel_Cheltuieli_Lunare[[#This Row],[Costul real]])","v":{"v":3,"d":"3 lei"}},{"$f":"Tabel_Cheltuieli_Lunare[[#This Row],[Costul real]]","v":22}]
[null,"Apă și canalizare","Locuință",{"v":25,"d":"25 lei"},{"v":26,"d":"26 lei"},{"$f":"IF(OR(Tabel_Cheltuieli_Lunare[[#This Row],[Costul estimat]]=\"\",Tabel_Cheltuieli_Lunare[[#This Row],[Costul real]]=\"\"),\"\",Tabel_Cheltuieli_Lunare[[#This Row],[Costul estimat]]-Tabel_Cheltuieli_Lunare[[#This Row],[Costul real]])","v":{"v":-1,"d":"-1 lei"}},{"$f":"Tabel_Cheltuieli_Lunare[[#This Row],[Costul real]]","v":26}]
[null,"Sănătate","Asigurare",{"v":400,"d":"400 lei"},{"v":400,"d":"400 lei"},{"$f":"IF(OR(Tabel_Cheltuieli_Lunare[[#This Row],[Costul estimat]]=\"\",Tabel_Cheltuieli_Lunare[[#This Row],[Costul real]]=\"\"),\"\",Tabel_Cheltuieli_Lunare[[#This Row],[Costul estimat]]-Tabel_Cheltuieli_Lunare[[#This Row],[Costul real]])","v":{"v":0,"d":"0 lei"}},{"$f":"Tabel_Cheltuieli_Lunare[[#This Row],[Costul real]]","v":400}]
[null,"Domiciliu","Asigurare",{"v":400,"d":"400 lei"},{"v":400,"d":"400 lei"},{"$f":"IF(OR(Tabel_Cheltuieli_Lunare[[#This Row],[Costul estimat]]=\"\",Tabel_Cheltuieli_Lunare[[#This Row],[Costul real]]=\"\"),\"\",Tabel_Cheltuieli_Lunare[[#This Row],[Costul estimat]]-Tabel_Cheltuieli_Lunare[[#This Row],[Costul real]])","v":{"v":0,"d":"0 lei"}},{"$f":"Tabel_Cheltuieli_Lunare[[#This Row],[Costul real]]","v":400}]
[null,"Viață","Asigurare",{"v":100,"d":"100 lei"},{"v":100,"d":"100 lei"},{"$f":"IF(OR(Tabel_Cheltuieli_Lunare[[#This Row],[Costul estimat]]=\"\",Tabel_Cheltuieli_Lunare[[#This Row],[Costul real]]=\"\"),\"\",Tabel_Cheltuieli_Lunare[[#This Row],[Costul estimat]]-Tabel_Cheltuieli_Lunare[[#This Row],[Costul real]])","v":{"v":0,"d":"0 lei"}},{"$f":"Tabel_Cheltuieli_Lunare[[#This Row],[Costul real]]","v":100}]
[null,"Card de credit 1","Împrumuturi",{"v":200,"d":"200 lei"},{"v":200,"d":"200 lei"},{"$f":"IF(OR(Tabel_Cheltuieli_Lunare[[#This Row],[Costul estimat]]=\"\",Tabel_Cheltuieli_Lunare[[#This Row],[Costul real]]=\"\"),\"\",Tabel_Cheltuieli_Lunare[[#This Row],[Costul estimat]]-Tabel_Cheltuieli_Lunare[[#This Row],[Costul real]])","v":{"v":0,"d":"0 lei"}},{"$f":"Tabel_Cheltuieli_Lunare[[#This Row],[Costul real]]","v":200}]
[null,"Card de credit 2","Împrumuturi",null,null,{"$f":"IF(OR(Tabel_Cheltuieli_Lunare[[#This Row],[Costul estimat]]=\"\",Tabel_Cheltuieli_Lunare[[#This Row],[Costul real]]=\"\"),\"\",Tabel_Cheltuieli_Lunare[[#This Row],[Costul estimat]]-Tabel_Cheltuieli_Lunare[[#This Row],[Costul real]])","v":""},{"$f":"Tabel_Cheltuieli_Lunare[[#This Row],[Costul real]]","v":0}]
[null,"Card de credit 3","Împrumuturi",null,null,{"$f":"IF(OR(Tabel_Cheltuieli_Lunare[[#This Row],[Costul estimat]]=\"\",Tabel_Cheltuieli_Lunare[[#This Row],[Costul real]]=\"\"),\"\",Tabel_Cheltuieli_Lunare[[#This Row],[Costul estimat]]-Tabel_Cheltuieli_Lunare[[#This Row],[Costul real]])","v":""},{"$f":"Tabel_Cheltuieli_Lunare[[#This Row],[Costul real]]","v":0}]
[null,"Personal","Împrumuturi",null,null,{"$f":"IF(OR(Tabel_Cheltuieli_Lunare[[#This Row],[Costul estimat]]=\"\",Tabel_Cheltuieli_Lunare[[#This Row],[Costul real]]=\"\"),\"\",Tabel_Cheltuieli_Lunare[[#This Row],[Costul estimat]]-Tabel_Cheltuieli_Lunare[[#This Row],[Costul real]])","v":""},{"$f":"Tabel_Cheltuieli_Lunare[[#This Row],[Costul real]]","v":0}]
[null,"Student","Împrumuturi",null,null,{"$f":"IF(OR(Tabel_Cheltuieli_Lunare[[#This Row],[Costul estimat]]=\"\",Tabel_Cheltuieli_Lunare[[#This Row],[Costul real]]=\"\"),\"\",Tabel_Cheltuieli_Lunare[[#This Row],[Costul estimat]]-Tabel_Cheltuieli_Lunare[[#This Row],[Costul real]])","v":""},{"$f":"Tabel_Cheltuieli_Lunare[[#This Row],[Costul real]]","v":0}]
[null,"Îmbrăcăminte","Îngrijire personală",{"v":150,"d":"150 lei"},{"v":140,"d":"140 lei"},{"$f":"IF(OR(Tabel_Cheltuieli_Lunare[[#This Row],[Costul estimat]]=\"\",Tabel_Cheltuieli_Lunare[[#This Row],[Costul real]]=\"\"),\"\",Tabel_Cheltuieli_Lunare[[#This Row],[Costul estimat]]-Tabel_Cheltuieli_Lunare[[#This Row],[Costul real]])","v":{"v":10,"d":"10 lei"}},{"$f":"Tabel_Cheltuieli_Lunare[[#This Row],[Costul real]]","v":140}]
[null,"Curățătorie","Îngrijire personală",null,null,{"$f":"IF(OR(Tabel_Cheltuieli_Lunare[[#This Row],[Costul estimat]]=\"\",Tabel_Cheltuieli_Lunare[[#This Row],[Costul real]]=\"\"),\"\",Tabel_Cheltuieli_Lunare[[#This Row],[Costul estimat]]-Tabel_Cheltuieli_Lunare[[#This Row],[Costul real]])","v":""},{"$f":"Tabel_Cheltuieli_Lunare[[#This Row],[Costul real]]","v":0}]
[null,"Păr/unghii","Îngrijire personală",null,null,{"$f":"IF(OR(Tabel_Cheltuieli_Lunare[[#This Row],[Costul estimat]]=\"\",Tabel_Cheltuieli_Lunare[[#This Row],[Costul real]]=\"\"),\"\",Tabel_Cheltuieli_Lunare[[#This Row],[Costul estimat]]-Tabel_Cheltuieli_Lunare[[#This Row],[Costul real]])","v":""},{"$f":"Tabel_Cheltuieli_Lunare[[#This Row],[Costul real]]","v":0}]
[null,"Club de sănătate","Îngrijire personală",null,null,{"$f":"IF(OR(Tabel_Cheltuieli_Lunare[[#This Row],[Costul estimat]]=\"\",Tabel_Cheltuieli_Lunare[[#This Row],[Costul real]]=\"\"),\"\",Tabel_Cheltuieli_Lunare[[#This Row],[Costul estimat]]-Tabel_Cheltuieli_Lunare[[#This Row],[Costul real]])","v":""},{"$f":"Tabel_Cheltuieli_Lunare[[#This Row],[Costul real]]","v":0}]
[null,"Medicale","Îngrijire personală",null,null,{"$f":"IF(OR(Tabel_Cheltuieli_Lunare[[#This Row],[Costul estimat]]=\"\",Tabel_Cheltuieli_Lunare[[#This Row],[Costul real]]=\"\"),\"\",Tabel_Cheltuieli_Lunare[[#This Row],[Costul estimat]]-Tabel_Cheltuieli_Lunare[[#This Row],[Costul real]])","v":""},{"$f":"Tabel_Cheltuieli_Lunare[[#This Row],[Costul real]]","v":0}]
[null,"Alimente","Animale de casă",{"v":150,"d":"150 lei"},{"v":75,"d":"75 lei"},{"$f":"IF(OR(Tabel_Cheltuieli_Lunare[[#This Row],[Costul estimat]]=\"\",Tabel_Cheltuieli_Lunare[[#This Row],[Costul real]]=\"\"),\"\",Tabel_Cheltuieli_Lunare[[#This Row],[Costul estimat]]-Tabel_Cheltuieli_Lunare[[#This Row],[Costul real]])","v":{"v":75,"d":"75 lei"}},{"$f":"Tabel_Cheltuieli_Lunare[[#This Row],[Costul real]]","v":75}]
[null,"Îngrijire","Animale de casă",{"v":20,"d":"20 lei"},{"v":25,"d":"25 lei"},{"$f":"IF(OR(Tabel_Cheltuieli_Lunare[[#This Row],[Costul estimat]]=\"\",Tabel_Cheltuieli_Lunare[[#This Row],[Costul real]]=\"\"),\"\",Tabel_Cheltuieli_Lunare[[#This Row],[Costul estimat]]-Tabel_Cheltuieli_Lunare[[#This Row],[Costul real]])","v":{"v":-5,"d":"-5 lei"}},{"$f":"Tabel_Cheltuieli_Lunare[[#This Row],[Costul real]]","v":25}]
[null,"Medicale","Animale de casă",null,null,{"$f":"IF(OR(Tabel_Cheltuieli_Lunare[[#This Row],[Costul estimat]]=\"\",Tabel_Cheltuieli_Lunare[[#This Row],[Costul real]]=\"\"),\"\",Tabel_Cheltuieli_Lunare[[#This Row],[Costul estimat]]-Tabel_Cheltuieli_Lunare[[#This Row],[Costul real]])","v":""},{"$f":"Tabel_Cheltuieli_Lunare[[#This Row],[Costul real]]","v":0}]
[null,"Jucării","Animale de casă",null,null,{"$f":"IF(OR(Tabel_Cheltuieli_Lunare[[#This Row],[Costul estimat]]=\"\",Tabel_Cheltuieli_Lunare[[#This Row],[Costul real]]=\"\"),\"\",Tabel_Cheltuieli_Lunare[[#This Row],[Costul estimat]]-Tabel_Cheltuieli_Lunare[[#This Row],[Costul real]])","v":""},{"$f":"Tabel_Cheltuieli_Lunare[[#This Row],[Costul real]]","v":0}]
[null,"Cont de investiții","Economii",{"v":200,"d":"200 lei"},{"v":200,"d":"200 lei"},{"$f":"IF(OR(Tabel_Cheltuieli_Lunare[[#This Row],[Costul estimat]]=\"\",Tabel_Cheltuieli_Lunare[[#This Row],[Costul real]]=\"\"),\"\",Tabel_Cheltuieli_Lunare[[#This Row],[Costul estimat]]-Tabel_Cheltuieli_Lunare[[#This Row],[Costul real]])","v":{"v":0,"d":"0 lei"}},{"$f":"Tabel_Cheltuieli_Lunare[[#This Row],[Costul real]]","v":200}]
[null,"Cont pensionare","Economii",null,null,{"$f":"IF(OR(Tabel_Cheltuieli_Lunare[[#This Row],[Costul estimat]]=\"\",Tabel_Cheltuieli_Lunare[[#This Row],[Costul real]]=\"\"),\"\",Tabel_Cheltuieli_Lunare[[#This Row],[Costul estimat]]-Tabel_Cheltuieli_Lunare[[#This Row],[Costul real]])","v":""},{"$f":"Tabel_Cheltuieli_Lunare[[#This Row],[Costul real]]","v":0}]
[null,"Regional","Taxe",{"v":300,"d":"300 lei"},{"v":300,"d":"300 lei"},{"$f":"IF(OR(Tabel_Cheltuieli_Lunare[[#This Row],[Costul estimat]]=\"\",Tabel_Cheltuieli_Lunare[[#This Row],[Costul real]]=\"\"),\"\",Tabel_Cheltuieli_Lunare[[#This Row],[Costul estimat]]-Tabel_Cheltuieli_Lunare[[#This Row],[Costul real]])","v":{"v":0,"d":"0 lei"}},{"$f":"Tabel_Cheltuieli_Lunare[[#This Row],[Costul real]]","v":300}]
[null,"Local","Taxe",null,null,{"$f":"IF(OR(Tabel_Cheltuieli_Lunare[[#This Row],[Costul estimat]]=\"\",Tabel_Cheltuieli_Lunare[[#This Row],[Costul real]]=\"\"),\"\",Tabel_Cheltuieli_Lunare[[#This Row],[Costul estimat]]-Tabel_Cheltuieli_Lunare[[#This Row],[Costul real]])","v":""},{"$f":"Tabel_Cheltuieli_Lunare[[#This Row],[Costul real]]","v":0}]
[null,"Județ","Taxe",null,null,{"$f":"IF(OR(Tabel_Cheltuieli_Lunare[[#This Row],[Costul estimat]]=\"\",Tabel_Cheltuieli_Lunare[[#This Row],[Costul real]]=\"\"),\"\",Tabel_Cheltuieli_Lunare[[#This Row],[Costul estimat]]-Tabel_Cheltuieli_Lunare[[#This Row],[Costul real]])","v":""},{"$f":"Tabel_Cheltuieli_Lunare[[#This Row],[Costul real]]","v":0}]
[null,"Tarif autobuz/taxi","Transport",{"v":100,"d":"100 lei"},{"v":150,"d":"150 lei"},{"$f":"IF(OR(Tabel_Cheltuieli_Lunare[[#This Row],[Costul estimat]]=\"\",Tabel_Cheltuieli_Lunare[[#This Row],[Costul real]]=\"\"),\"\",Tabel_Cheltuieli_Lunare[[#This Row],[Costul estimat]]-Tabel_Cheltuieli_Lunare[[#This Row],[Costul real]])","v":{"v":-50,"d":"-50 lei"}},{"$f":"Tabel_Cheltuieli_Lunare[[#This Row],[Costul real]]","v":150}]
[null,"Benzină","Transport",{"v":450,"d":"450 lei"},{"v":400,"d":"400 lei"},{"$f":"IF(OR(Tabel_Cheltuieli_Lunare[[#This Row],[Costul estimat]]=\"\",Tabel_Cheltuieli_Lunare[[#This Row],[Costul real]]=\"\"),\"\",Tabel_Cheltuieli_Lunare[[#This Row],[Costul estimat]]-Tabel_Cheltuieli_Lunare[[#This Row],[Costul real]])","v":{"v":50,"d":"50 lei"}},{"$f":"Tabel_Cheltuieli_Lunare[[#This Row],[Costul real]]","v":400}]
[null,"Asigurare","Transport",{"v":300,"d":"300 lei"},{"v":300,"d":"300 lei"},{"$f":"IF(OR(Tabel_Cheltuieli_Lunare[[#This Row],[Costul estimat]]=\"\",Tabel_Cheltuieli_Lunare[[#This Row],[Costul real]]=\"\"),\"\",Tabel_Cheltuieli_Lunare[[#This Row],[Costul estimat]]-Tabel_Cheltuieli_Lunare[[#This Row],[Costul real]])","v":{"v":0,"d":"0 lei"}},{"$f":"Tabel_Cheltuieli_Lunare[[#This Row],[Costul real]]","v":300}]
[null,"Licențiere ","Transport",{"v":25,"d":"25 lei"},{"v":25,"d":"25 lei"},{"$f":"IF(OR(Tabel_Cheltuieli_Lunare[[#This Row],[Costul estimat]]=\"\",Tabel_Cheltuieli_Lunare[[#This Row],[Costul real]]=\"\"),\"\",Tabel_Cheltuieli_Lunare[[#This Row],[Costul estimat]]-Tabel_Cheltuieli_Lunare[[#This Row],[Costul real]])","v":{"v":0,"d":"0 lei"}},{"$f":"Tabel_Cheltuieli_Lunare[[#This Row],[Costul real]]","v":25}]
[null,"Întreținere","Transport",{"v":100,"d":"100 lei"},{"v":50,"d":"50 lei"},{"$f":"IF(OR(Tabel_Cheltuieli_Lunare[[#This Row],[Costul estimat]]=\"\",Tabel_Cheltuieli_Lunare[[#This Row],[Costul real]]=\"\"),\"\",Tabel_Cheltuieli_Lunare[[#This Row],[Costul estimat]]-Tabel_Cheltuieli_Lunare[[#This Row],[Costul real]])","v":{"v":50,"d":"50 lei"}},{"$f":"Tabel_Cheltuieli_Lunare[[#This Row],[Costul real]]","v":50}]
[null,"Taxe de parcare","Transport",null,null,{"$f":"IF(OR(Tabel_Cheltuieli_Lunare[[#This Row],[Costul estimat]]=\"\",Tabel_Cheltuieli_Lunare[[#This Row],[Costul real]]=\"\"),\"\",Tabel_Cheltuieli_Lunare[[#This Row],[Costul estimat]]-Tabel_Cheltuieli_Lunare[[#This Row],[Costul real]])","v":""},{"$f":"Tabel_Cheltuieli_Lunare[[#This Row],[Costul real]]","v":0}]
[null,"Plată vehicul","Transport",{"v":450,"d":"450 lei"},{"v":450,"d":"450 lei"},{"$f":"IF(OR(Tabel_Cheltuieli_Lunare[[#This Row],[Costul estimat]]=\"\",Tabel_Cheltuieli_Lunare[[#This Row],[Costul real]]=\"\"),\"\",Tabel_Cheltuieli_Lunare[[#This Row],[Costul estimat]]-Tabel_Cheltuieli_Lunare[[#This Row],[Costul real]])","v":{"v":0,"d":"0 lei"}},{"$f":"Tabel_Cheltuieli_Lunare[[#This Row],[Costul real]]","v":450}]

{"sheet":"Date Suplimentare","index":3,"n_rows":17,"n_cols":6,"rows_kept":17}
[{"$nulls":5}," "]
[null,"Raport PivotTable pentru diagrama Buget",null,null,"Listă de categorii"]
[]
[null,"Categorii","Costul real ",null,"Pentru a adăuga o categorie, tastați mai jos"]
[null,"Animale de casă",{"v":100,"d":"100 lei"},null,"Copii"]
[null,"Cadouri și caritate",{"v":125,"d":"125 lei"},null,"Distracție"]
[null,"Copii",{"v":140,"d":"140 lei"},null,"Alimente"]
[null,"Îngrijire personală",{"v":140,"d":"140 lei"},null,"Cadouri și caritate"]
[null,"Economii",{"v":200,"d":"200 lei"},null,"Locuință"]
[null,"Împrumuturi",{"v":200,"d":"200 lei"},null,"Asigurare"]
[null,"Taxe",{"v":300,"d":"300 lei"},null,"Împrumuturi"]
[null,"Distracție",{"v":358,"d":"358 lei"},null,"Îngrijire personală"]
[null,"Asigurare",{"v":900,"d":"900 lei"},null,"Animale de casă"]
[null,"Alimente",{"v":1320,"d":"1,320 lei"},null,"Economii"]
[null,"Transport",{"v":1375,"d":"1,375 lei"},null,"Taxe"]
[null,"Locuință",{"v":2702,"d":"2,702 lei"},null,"Transport"]
[null,"Total general",{"v":7860,"d":"7,860 lei"}]